[Event "1000GM 0003 GM Norm 2022"]
[Site "Saint Louis"]
[Date "2022.09.25"]
[Round "8.1"]
[White "Raja Harshit"]
[Black "Kaliksteyn, Alexander"]
[Result "1/2-1/2"]
[ECO "B48"]
[WhiteElo "2459"]
[BlackElo "2393"]
[Annotator "TA"]
[PlyCount "87"]
[EventDate "2022.09.21"]
[EventType "tourn"]
[EventCountry "USA"]
[SourceTitle "playchess.com"]
[Source "ChessBase"]
[SourceQuality "1"]
[TimeControl "5400+30"]

{[%evp 11,87,32,42,0,4,0,0,0,0,0,0,0,0,0,0,0,18,17,27,21,27,17,25,21,23,24,19,31,16,23,30,0,0,0,0,0,29,27,58,54,66,66,66,66,66,41,66,66,66,66,121,121,121,121,121,120,120,120,120,120,120,120,151,55,55,55,55,54,54,54,55,55,55,55,55,55,55,55]} 1. e4 {[%emt 0:01:04]} c5 {[%emt 0:00:25]} 2. Nf3 {[%emt 0:00:22]} e6 {[%emt 0:00:13]} 3. d4 {[%emt 0:01:39]} cxd4 {[%emt 0:00:08]} 4. Nxd4 {[%emt 0:00:06]} Nc6 {[%emt 0:00:03]} 5. Nc3 {[%emt 0:00:08][%cal Bb1c3,Bc3e2,Be2g3,Bg3h5][%mdl 32]} Qc7 {[%emt 0:00:09]} 6. Be3 {[%emt 0:00:09]} a6 {[%emt 0:00:14]} 7. g4 {[%emt 0:00:13] B48: Sicilian: Taimanov: 5 Nc3 Qc7 6 Be3 a6 without Be2.} b5 {[%emt 0:00:37][%cal Bb7b5,Bb5b4][%mdl 32]} 8. Nxc6 {[%emt 0:00:10]} Qxc6 {[%emt 0:00:34]} 9. Qd2 {[%emt 0:00:11] The position is equal.} b4 {[%emt 0:00:15]} 10. Ne2 {[%emt 0:00:08]} Qxe4 {[%emt 0:00:08]} 11. Rg1 {[%emt 0:00:09]} Qc4 {[%emt 0:00:13]} 12. Ng3 {[%emt 0:00:12]} Qc7 {[%emt 0:00:18]} 13. O-O-O {[%emt 0:00:08]} Ne7 {[%emt 0:01:43]} 14. Nh5 {[%emt 0:01:09][%mdl 1024] White has compensation.} Nd5 {[%emt 0:00:56]} 15. Bd4 {[%emt 0:00:12]} Rg8 {[%emt 0:01:55]} (15... Qxh2 $2 16. Rg3 Qh4 17. Bg2 $18 (17. Nxg7+ Bxg7 18. Bxg7 Rg8 $14)) 16. Qd3 {[%emt 0:00:10]} g6 {[%emt 0:00:56]} (16... Qxh2 $2 17. Qxh7 Qxg1 18. Qxg8 $18) 17. Bg2 $1 {[%emt 0:00:05]} gxh5 {[%emt 0:00:21]} 18. Bxd5 {[%emt 0:00:06] Active counter play!} Bb7 {[%emt 0:00:05]} (18... exd5 $2 19. Rde1+ Be7 20. Qxh7 Qf4+ 21. Be3 Qxe3+ 22. Rxe3 $18) 19. Bxb7 {[%emt 0:00:08]} Qxb7 {[%emt 0:00:04]} 20. g5 {[%emt 0:00:17]} Qd5 {[%emt 0:00:49]} 21. h4 {[%emt 0:03:44]} (21. f4 $5 {[%cal Rd3h7]} Bg7 22. Bf2 (22. Qxh7 Bxd4 23. Qxg8+ Ke7 $11) 22... Qxd3 23. Rxd3 $11) 21... Qxa2 {[%emt 0:01:22]} 22. b3 {[%emt 0:00:13] And now f4 would win.} Rc8 $1 {[%emt 0:01:18] [#]} 23. f4 $146 {[%emt 0:00:07] Strongly threatening f5.} ({Predecessor:} 23. Rg3 Rc6 24. Qxh7 Rg6 25. Bb2 Bg7 26. Qg8+ Bf8 27. Qh7 Bg7 28. Qg8+ Bf8 29. Qh8 {1-0 (38) Grandelius,N (2645)-Movsesian,S (2607) Chartres 2022}) 23... d5 {[%emt 0:07:30]} ({Resist} 23... Bd6 24. Rgf1 f5 25. gxf6 $16) (23... Rc7 $5 {[%cal Rf8g7]}) 24. Kd2 $40 {[%emt 0:00:29][%mdl 128] Black must now prevent Ra1. White mounts an attack.} (24. f5 $5 {[%cal Rf5e6]} Bc5 25. Bb2 Bxg1 26. Rxg1 $11) 24... Bg7 {[%emt 0:14:34] Threatens to win with ...Bxd4.} 25. Ra1 $1 {[%emt 0:16:39]} Qxc2+ {[%emt 0:01:25]} 26. Qxc2 {[%emt 0:00:05] Chess con chili.} Rxc2+ {[%emt 0:00:05]} 27. Kxc2 {[%emt 0:00:03]} Bxd4 {[%emt 0:00:06] [#]} 28. Rxa6 $1 {[%emt 0:00:06]} Bxg1 $14 {[%emt 0:00:23][%mdl 4096] Endgame KRB-KR} 29. Ra8+ {[%emt 0:00:07][%cal Ba6a8,Ba8g8,Bg8h8,Bh8h7][%mdl 32]} Ke7 {[%emt 0:00:12]} 30. Rxg8 {[%emt 0:00:07] KR-KB} Bf2 {[%emt 0:07:25]} (30... Bh2 $14) 31. Rh8 {[%emt 0:09:25]} Bxh4 {[%emt 0:00:26]} 32. Rxh7 {[%emt 0:00:06] g6 is the strong threat.} Kf8 {[%emt 0:01:42]} (32... Bg3 $2 33. g6 Kf8 34. Rxf7+ Kg8 35. Kd3 $18) 33. Kd3 {[%emt 0:05:19]} Bg3 {[%emt 0:06:13]} 34. f5 {[%emt 0:09:04]} ({But not} 34. Rxh5 $6 Bxf4 35. Kd4 Ke7 $11) 34... exf5 {[%emt 0:01:03]} 35. Rxh5 {[%emt 0:00:08]} Be5 {[%emt 0:16:17]} 36. Rh6 {[%emt 0:03:15]} f6 {[%emt 0:02:07] [#]} 37. gxf6 {[%emt 0:04:37]} (37. Rh7 $1 $16) 37... Kf7 {[%emt 0:00:20] White is slightly better.} 38. Ke3 {[%emt 0:00:17]} Ke6 {[%emt 0:10:46]} 39. f7+ {[%emt 0:05:27]} Kxf7 {[%emt 0:00:08]} 40. Rb6 {[%emt 0:00:04]} Bc3 {[%emt 0:00:19]} 41. Kf4 {[%emt 0:00:25]} d4 {[%emt 0:00:20]} 42. Kxf5 {[%emt 0:03:30]} d3 {[%emt 0:00:17]} 43. Rb7+ {[%emt 0:00:40]} Kf8 {[%emt 0:01:26]} 44. Ke4 {[%emt 0:00:32] Weighted Error Value: White=0.05 (flawless) /Black=0.08 (flawless)} 1/2-1/2

[Event "1000GM 0003 GM Norm 2022"]
[Site "Saint Louis"]
[Date "2022.09.25"]
[Round "8.2"]
[White "Chandra, Akshat"]
[Black "Antipov, Mikhail Al."]
[Result "1/2-1/2"]
[ECO "D02"]
[WhiteElo "2471"]
[BlackElo "2603"]
[Annotator "TA"]
[PlyCount "53"]
[EventDate "2022.09.21"]
[EventType "tourn"]
[EventCountry "USA"]
[SourceTitle "playchess.com"]
[Source "ChessBase"]
[SourceQuality "1"]
[TimeControl "5400+30"]

{[%evp 9,53,5,13,15,25,8,32,0,0,-9,-1,-9,6,4,4,0,0,0,11,-17,-20,-23,-15,-21,0,-7,-7,-10,0,0,0,0,0,-27,237,233,242,235,238,241,241,193,173,0,123,0]} 1. d4 {[%emt 0:03:15]} Nf6 {[%emt 0:00:06]} 2. Nf3 {[%emt 0:00:06]} g6 {[%emt 0:00:05]} 3. Nbd2 {[%emt 0:00:12]} d5 {[%emt 0:00:12]} 4. b4 {[%emt 0:00:56]} Bg7 {[%emt 0:00:09]} 5. e3 {[%emt 0:00:19]} a5 {[%emt 0:00:30]} 6. b5 {[%emt 0:00:06] D02: 1 d4 d5 2 Nf3 sidelines, including 2...Nf6 3 g3 and 2...Nf6 3 Bf4.} c5 {[%emt 0:00:03]} 7. bxc6 {[%emt 0:00:48]} Nxc6 {[%emt 0:00:05] The main line 7...Nxc6 scores better than 7...bxc6.} 8. a4 {[%emt 0:02:12] White is slightly better.} O-O {[%emt 0:00:52]} 9. Bb5 {[%emt 0:00:19]} Bf5 {[%emt 0:01:21] Threatening ...Nb4.} 10. O-O {[%emt 0:00:41]} Rc8 {[%emt 0:00:16]} 11. Bb2 {[%emt 0:15:13] [#]} Ne8 $146 {[%emt 0:13:12]} ({Predecessor:} 11... Ne4 12. Nxe4 Bxe4 13. c3 e5 14. Ba3 Re8 15. Rc1 Bf8 16. Bxf8 Bxf3 17. Qxf3 Rxf8 {1-0 (41) Xiong,J (2679)-Sorokin,A (2531) Chicago 2019}) 12. c3 {[%emt 0:16:34]} Nd6 {[%emt 0:02:38]} 13. Be2 {[%emt 0:02:10]} e5 {[%emt 0:01:03]} 14. Nxe5 {[%emt 0:14:55]} Nxe5 {[%emt 0:00:07]} 15. dxe5 {[%emt 0:00:02]} Bxe5 {[%emt 0:02:03]} 16. Nf3 {[%emt 0:00:17][%csl LRd5,LRe5]} Qb6 {[%emt 0:05:18]} 17. Nxe5 {[%emt 0:14:22] Black must now prevent Ba3.} Qxb2 {[%emt 0:00:07]} 18. Qxd5 {[%emt 0:00:10]} Rfd8 {[%emt 0:06:49]} 19. Bg4 {[%emt 0:02:19]} Bxg4 {[%emt 0:00:53]} 20. Nxg4 {[%emt 0:00:04]} Qxc3 {[%emt 0:00:05]} 21. h3 {[%emt 0:20:09][%cal Oa1c1] aiming for Rac1!} (21. Rad1 $5 {[%cal Rd5g5]}) 21... Kg7 $2 {[%emt 0:25:17][%mdl 8192] [#]} (21... h5 $11 22. Nh2 (22. Ne5 Rc5 $17) 22... Rc5) 22. Rac1 $1 $18 {[%emt 0:01:49]} ({Inferior is} 22. Qg5 f5 23. Qe7+ Nf7 $11) 22... Qxc1 {[%emt 0:01:16]} 23. Qd4+ {[%emt 0:01:17]} Kf8 {[%emt 0:00:07]} 24. Qh8+ {[%emt 0:03:25][%mdl 1024] White has strong compensation.} Ke7 {[%emt 0:00:01] [#]} 25. Qe5+ {[%emt 0:00:15]} ({But not} 25. Qf6+ $6 Ke8 26. Rxc1 Rxc1+ 27. Kh2 Kd7 $16) 25... Kf8 {[%emt 0:00:03]} 26. Qh8+ {[%emt 0:00:10]} ({Only move:} 26. Rxc1 $18 Rxc1+ 27. Kh2) 26... Ke7 $16 {[%emt 0:00:03]} 27. Qe5+ {[%emt 0:00:03] Weighted Error Value: White=0.20 (precise) /Black=0.30} (27. Qf6+ $16 Ke8 28. Qe5+ (28. Rxc1 Rxc1+ 29. Kh2 Kd7 $16) 28... Kf8 29. Rxc1 Rxc1+ 30. Kh2) 1/2-1/2

[Event "1000GM 0003 GM Norm 2022"]
[Site "Saint Louis"]
[Date "2022.09.25"]
[Round "8.3"]
[White "Kretchetov, Alexandre"]
[Black "Gedajlovic, Max"]
[Result "0-1"]
[ECO "E51"]
[WhiteElo "2144"]
[BlackElo "2343"]
[Annotator "TA"]
[PlyCount "69"]
[EventDate "2022.09.21"]
[EventType "tourn"]
[EventCountry "USA"]
[SourceTitle "playchess.com"]
[Source "ChessBase"]
[SourceQuality "1"]
[TimeControl "5400+30"]

{[%evp 13,69,0,0,-7,-4,-9,0,0,0,0,6,0,0,-35,-43,-31,-42,-24,-20,-37,0,-44,-41,-48,-47,-40,-35,-36,-35,-43,-31,-37,-38,-169,-186,-207,-205,-229,-220,-266,-277,-358,-158,-161,-124,-158,0,-29987,-1048,-29994,-29995,-29995,-29996,-29996,-29997,-29997,2400,-29990]} 1. Nf3 {[%emt 0:03:22]} d5 {[%emt 0:00:12]} 2. d4 {[%emt 0:00:55]} Nf6 {[%emt 0:00:10]} 3. c4 {[%emt 0:00:27]} e6 {[%emt 0:00:12]} 4. Nc3 {[%emt 0:00:03]} Bb4 {[%emt 0:00:12]} 5. e3 {[%emt 0:00:24]} O-O {[%emt 0:00:34]} 6. Bd2 {[%emt 0:00:04]} b6 {[%emt 0:00:18]} 7. cxd5 {[%emt 0:00:07]} exd5 {[%emt 0:00:09]} 8. Bd3 {[%emt 0:00:03] E51: Nimzo-Indian: Rubinstein: 4...0-0 5 Nf3 d5.} Bd6 {[%emt 0:00:13]} 9. O-O {[%emt 0:00:13]} Re8 {[%emt 0:00:06] Prevents e4.} 10. Qb1 {[%emt 0:00:13] The position is equal.} Nbd7 {[%emt 0:00:16]} 11. b4 {[%emt 0:03:20]} c5 {[%emt 0:00:10] [#]} 12. bxc5 $146 {[%emt 0:14:09]} ({Predecessor:} 12. e4 cxd4 13. Nb5 Bb8 14. exd5 Bb7 15. Nbxd4 Ne5 16. Bg5 Nxd3 17. Qxd3 Qxd5 18. Bxf6 gxf6 {0-1 (58) Nasyrova,E (2097)-Lintchevski,D (2556) Novorossiysk 2022}) 12... bxc5 {[%emt 0:00:08]} 13. Qc2 {[%emt 0:00:21]} c4 {[%emt 0:04:20]} 14. Bf5 {[%emt 0:00:07]} Nb6 {[%emt 0:04:42]} 15. Rab1 {[%emt 0:00:57]} Ne4 {[%emt 0:07:00]} 16. Bxc8 {[%emt 0:04:08]} Rxc8 {[%emt 0:01:06][%cal Ba8c8,Bc8c6,Bc6h6][%mdl 32]} 17. Ne2 {[%emt 0:02:04]} Qd7 {[%emt 0:04:33][%cal Oc4c3]} 18. Ba5 {[%emt 0:01:08] Inhibits c3.} Rc6 {[%emt 0:03:21]} 19. Nc3 {[%emt 0:05:26]} Bc7 {[%emt 0:03:25]} 20. Rfd1 {[%emt 0:16:52][%cal Of3e5]} Nxc3 {[%emt 0:13:09]} 21. Bxc3 {[%emt 0:02:33]} Rh6 {[%emt 0:01:59]} 22. Ne5 {[%emt 0:01:42]} Qe6 {[%emt 0:01:11]} 23. Rb5 {[%emt 0:06:16]} (23. h3 $15) 23... f6 $19 {[%emt 0:01:51]} 24. Nf3 {[%emt 0:00:14]} g5 $1 {[%emt 0:00:48] ...g4 is the strong threat.} 25. h3 {[%emt 0:00:42]} g4 {[%emt 0:02:48]} 26. hxg4 {[%emt 0:00:20]} Qxg4 {[%emt 0:00:20]} 27. Ba5 {[%emt 0:04:56]} Qh5 {[%emt 0:22:04]} (27... Kh8 $19 {is more deadly. Threatens to win with ...Rh3.} 28. Rc5 (28. Bxb6 $2 axb6 29. a4 Rh3 $19) 28... Rg8) 28. Kf1 $17 {[%emt 0:00:43]} Rg6 $36 {[%emt 0:01:01][%mdl 2048] Black has strong initiative.} 29. Bxb6 {[%emt 0:03:23]} Bf4 {[%emt 0:03:10] Dancing on a razor blade.} (29... Bxb6 30. Ng1 $11) (29... axb6 $17 30. Ng1 Qg4) 30. Kg1 $2 {[%emt 0:12:42][%mdl 8192]} (30. Bc7 $11 Bxc7 31. Ng1) 30... Rxe3 {[%emt 0:05:17]} (30... Qg4 31. Ne1 $11) (30... Rh6 $142 31. Kf1 Qh1+ 32. Ng1 Rh2 33. Qe2 Qxg2+ 34. Ke1 Rxe3 $3 {[%mdl 512]} 35. Kd2 Qxf2 36. Bxa7 Rb3+ 37. Kc2 Qxe2+ 38. Nxe2 Rxe2+ 39. Rd2 Rxd2+ 40. Kc1 Rxa2+ 41. Kd1 Rxb5 42. Ke1 Rb1#) 31. Rxd5 {[%emt 0:04:36] [#]} Rxg2+ $1 {[%emt 0:00:29][%mdl 64] Remove Defender, Decoy} ({And not} 31... Qxd5 32. fxe3 Bxe3+ 33. Kf1 axb6 34. Qe2 $15) 32. Kxg2 {[%emt 0:00:14]} Qxf3+ {[%emt 0:00:09]} 33. Kg1 {[%emt 0:00:46]} Qg4+ {[%emt 0:00:06]} ({Inferior is} 33... Qxd5 34. fxe3 Bxe3+ 35. Kh2 axb6 36. Qe2 $17 (36. Qg2+ $2 Qxg2+ 37. Kxg2 c3 $19)) 34. Kf1 {[%emt 0:00:18]} Qg6 $4 {[%emt 0:01:20][%mdl 8192]} (34... Qh3+ {and all is fine.} 35. Kg1 Qh2+ 36. Kf1 Qh1#) 35. Rb5 $4 {[%mdl 8192] Weighted Error Value: White=0.52/Black=0.43} (35. Qxg6+ $18 hxg6 36. fxe3) 0-1

[Event "1000GM 0003 GM Norm 2022"]
[Site "Saint Louis"]
[Date "2022.09.25"]
[Round "8.4"]
[White "Mardov, Dimitar"]
[Black "Tugstumur, Yesuntumur"]
[Result "1/2-1/2"]
[WhiteElo "2414"]
[BlackElo "2375"]
[Annotator "TA"]
[PlyCount "36"]
[EventDate "2022.09.21"]
[EventType "tourn"]
[EventCountry "USA"]
[SourceTitle "playchess.com"]
[Source "ChessBase"]
[SourceQuality "1"]
[TimeControl "5400+30"]

{[%evp 14,15,34,16]} 1. e4 {[%emt 0:00:11]} c5 {[%emt 0:00:17]} 2. Nf3 {[%emt 0:00:23]} e6 {[%emt 0:00:44]} 3. d4 {[%emt 0:01:03]} cxd4 {[%emt 0:00:25]} 4. Nxd4 {[%emt 0:00:04]} Nc6 {[%emt 0:00:07]} 5. Nc3 {[%emt 0:00:05]} Qc7 {[%emt 0:00:10]} 6. f4 {[%emt 0:00:11]} a6 {[%emt 0:01:58]} 7. Nxc6 {[%emt 0:00:12]} Qxc6 {[%emt 0:01:33]} 8. Bd3 {[%emt 0:00:17] [#]} {Predecessor:} b5 $146 {B47: Sicilian: Taimanov: 5 Nc3 Qc7 6 f4, 6 g3 and 6 Be2.} 9. Qe2 Bb7 10. Bd2 Bc5 11. O-O-O Ne7 12. a3 O-O 13. h4 b4 14. axb4 Bxb4 15. h5 a5 16. h6 g6 17. Qf2 f6 18. Rh3 Ba6 {1-0 (41) Adams,M (2692)-Fedorchuk,S (2621) Germany 2021} 1/2-1/2

[Event "1000GM 0003 GM Norm 2022"]
[Site "Saint Louis"]
[Date "2022.09.25"]
[Round "8.5"]
[White "Williams, Justus"]
[Black "Stearman, Josiah"]
[Result "1-0"]
[ECO "B53"]
[WhiteElo "2392"]
[BlackElo "2387"]
[Annotator "TA"]
[PlyCount "121"]
[EventDate "2022.09.21"]
[EventType "tourn"]
[EventCountry "USA"]
[SourceTitle "playchess.com"]
[Source "ChessBase"]
[SourceQuality "1"]
[TimeControl "5400+30"]

{[%evp 18,121,14,0,0,0,12,-46,50,40,145,46,52,52,56,7,7,7,10,-19,0,-15,24,0,97,97,91,91,117,105,105,63,68,0,0,0,0,0,0,0,0,0,0,0,0,0,0,0,0,0,508,498,412,200,764,405,312,267,29956,29966,29964,29966,29964,29965,29959,29959,2258,450,443,304,312,268,2338,2338,2338,2338,2338,2338,2338,2338,2338,2211,2204,565,558,0,1928,558,29966,29969,29969,29970,29977,29974,29980,29981,29981,29971,29971,29972,29968,29973,29969,29974,29978,29970]} 1. e4 {[%emt 0:00:18]} c5 {[%emt 0:00:39]} 2. Nf3 {[%emt 0:02:06]} Nc6 {[%emt 0:00:06]} 3. Bb5 {[%emt 0:00:24]} d6 {[%emt 0:00:08]} 4. d4 {[%emt 0:01:57]} cxd4 {[%emt 0:00:43]} 5. Qxd4 {[%emt 0:01:52]} Bd7 {[%emt 0:00:39]} 6. Bxc6 {[%emt 0:01:06]} Bxc6 {[%emt 0:02:14]} 7. c4 {[%emt 0:00:43]} Nf6 {[%emt 0:00:51]} 8. Nc3 {[%emt 0:00:07]} g6 {[%emt 0:00:29]} 9. Bg5 {[%emt 0:05:27]} Bg7 {[%emt 0:00:25]} 10. O-O {[%emt 0:01:30]} O-O {[%emt 0:00:11][%cal Of6e4,Bh8f8,Bf8f5,Bf5e5][%mdl 32] B53: Sicilian: 2...d6: Lines with Qxd4.} 11. Qe3 {[%emt 0:00:47]} Ng4 {[%emt 0:07:43] [#]} 12. Qf4 $146 {[%emt 0:07:17]} (12. Qd3 $11) ({Predecessor:} 12. Qd3 Ne5 13. Nxe5 Bxe5 14. Be3 Bg7 15. Bd4 Bxd4 16. Qxd4 Qa5 17. a3 Qc5 18. Qxc5 dxc5 {1-0 (64) Gonzalez Grave de Peralta,R (2069)-De la Torre Sanchez,A (2080) Santa Clara 2011}) 12... f5 {[%emt 0:03:57]} (12... Qd7 $15 13. h3 Bxc3 14. bxc3 Ne5) 13. exf5 $14 {[%emt 0:02:32]} h5 {[%emt 0:00:41]} (13... Ne5 $14 14. Nd4 Rf7) 14. Nd5 {[%emt 0:01:46]} (14. Nh4 $16) 14... Bxd5 {[%emt 0:02:40]} 15. cxd5 {[%emt 0:00:16]} Rxf5 {[%emt 0:00:09]} 16. Qe4 {[%emt 0:06:39]} (16. Qd2 $14 {is superior.}) 16... Ne5 $132 {[%emt 0:00:42][%mdl 2048] Black has counterplay} 17. Nxe5 {[%emt 0:00:30]} Rxe5 {[%emt 0:01:03]} 18. Qh4 {[%emt 0:02:16]} Qb6 {[%emt 0:04:45]} 19. Rad1 {[%emt 0:13:56]} Rc8 {[%emt 0:02:09]} 20. Be3 {[%emt 0:06:18]} Qxb2 {[%emt 0:01:56]} (20... Qb5 $11) 21. Bd4 $16 {[%emt 0:01:47]} Qb4 {[%emt 0:00:02] [#] Threatens to win with ...Rc4.} 22. Qg3 {[%emt 0:04:40]} Kh7 {[%emt 0:06:11]} (22... Rxd5 $2 23. Qxg6 Rxd4 24. Rxd4 (24. Qe6+ Kh7 $16) 24... Qxd4 25. Qe6+ Kh7 26. Qf5+ (26. Qxc8 Qe4 $16) 26... Kh6 27. Qxc8 $18) 23. Bxe5 {[%emt 0:00:34]} Bxe5 {[%emt 0:00:03]} 24. Qh3 {[%emt 0:01:38]} Rc2 {[%emt 0:01:57]} 25. f4 {[%emt 0:01:19]} (25. Qd7 $14) 25... Bf6 $11 {[%emt 0:01:35]} 26. f5 {[%emt 0:02:52]} Rxa2 {[%emt 0:06:41]} 27. fxg6+ {[%emt 0:01:45]} Kxg6 {[%emt 0:00:07]} 28. Rf3 {[%emt 0:08:01]} Qc5+ {[%emt 0:02:32]} 29. Kh1 {[%emt 0:04:37]} Qxd5 $1 {[%emt 0:01:03]} 30. Rdf1 {[%emt 0:00:49] And now Rf5 would win.} h4 {[%emt 0:07:22]} (30... Kh7 $2 31. Rf5 Qxg2+ 32. Qxg2 $18) 31. Qg4+ {[%emt 0:03:05]} Qg5 {[%emt 0:01:39]} 32. Qe4+ {[%emt 0:00:02]} (32. Rxf6+ exf6 33. Qe4+ Kh6 $17) 32... Kg7 {[%emt 0:00:34][%csl Ga2][%cal Rg5g2]} 33. Rf4 {[%emt 0:02:11] Black must now prevent Rg4. Really sharp!} Kf8 $2 {[%emt 0:03:43][%mdl 8192] White leaves nothing to chance now.} (33... Kh6 $11 {and Black has nothing to worry.}) 34. Rf5 $18 {[%emt 0:02:08]} Qg7 {[%emt 0:03:08]} 35. Qxb7 {[%emt 0:02:59]} (35. h3 $142) 35... Qf7 $2 {[%emt 0:00:43]} (35... Qg6 36. h3 Re2) 36. Qc8+ {[%emt 0:01:23]} Qe8 {[%emt 0:00:18]} 37. Qc3 {[%emt 0:01:18]} (37. Rxf6+ exf6 38. Qc4 (38. Rxf6+ $2 Kg7 $19) 38... Ra4 $11) 37... Kg7 {[%emt 0:01:41]} (37... Re2 $18 38. R5f4 Re5 39. Rxh4 Kf7) 38. Rxf6 {[%emt 0:01:36]} exf6 {[%emt 0:00:05]} 39. Qxf6+ {[%emt 0:00:04] KQR-KQR} Kh7 {[%emt 0:00:35]} 40. Qxh4+ {[%emt 0:00:05]} Kg7 {[%emt 0:00:15]} 41. Qf6+ {[%emt 0:00:05]} Kh7 {[%emt 0:00:04]} 42. Qxd6 {[%emt 0:05:10]} (42. Rb1 $142 Kg8 43. Qg5+ Kh8 44. Qh4+ Kg7 45. Qg3+ Kh8 46. Qc3+ Qe5 47. Qc8+ Kg7 48. Rb7+ Kg6 49. Qg8+ Kf6 50. Qf8+ Kg6 51. Qf7+ (51. Qf1 Ra1 $11) 51... Kg5 52. Qg8+ Kf4 53. g3+ Kf3 54. Qf7+ Ke3 55. Qb3+ Kf2 56. Qxa2+ Kf3 57. Qf7+ Ke3 58. Rb3+ Kd4 59. Rb4+ Ke3 60. Qb3+ Kd2 61. Qa2+ Ke3 62. Rb3+ Kd4 63. Qd2+ Kc5 64. Qc2+ Kd5 65. Rb5+ Ke6 66. Qg6+ Kd7 67. Qf7+ Kc8 68. Rxe5) 42... Re2 {[%emt 0:01:03]} 43. h3 {[%emt 0:00:59]} Re6 {[%emt 0:01:58]} 44. Qd3+ {[%emt 0:00:21]} Rg6 $2 {[%emt 0:00:47]} (44... Kh6 45. Rf4 Qe7) 45. Rf5 {[%emt 0:00:56] White wants to mate with Rh5+.} Qe1+ {[%emt 0:01:35] [#]} 46. Kh2 $1 {[%emt 0:00:03]} Kh6 {[%emt 0:00:10] Against Rh5+} 47. Qa3 {[%emt 0:01:40] Threatening mate with Qf8+.} Qe8 {[%emt 0:01:34]} 48. Qc1+ {[%emt 0:00:55]} Kg7 {[%emt 0:00:51]} 49. Qb2+ {[%emt 0:00:45]} Kh6 {[%emt 0:00:20]} 50. Qd2+ {[%emt 0:01:28]} (50. Rf4 $142 {White threatens Qd4 and mate.} Qd8 51. g3) 50... Kg7 {[%emt 0:00:01]} 51. Qb2+ {[%emt 0:00:55]} (51. Qd4+ $142 Kg8 52. Qd5+ (52. Qxa7 Rxg2+ 53. Kh1 Rg7 $11) 52... Kg7 53. Qb7+ Kh6 54. Qb4 (54. Qxa7 Rxg2+ 55. Kh1 Qe4 $11) (54. Qf3 Qb8+ 55. g3 Qb2+ 56. Qg2 Qxg2+ 57. Kxg2 Ra6 $18)) 51... Kh6 {[%emt 0:00:11]} 52. g4 {[%emt 0:00:24]} (52. Rf4 $142 {Qd4 would kill now.} Qd8 53. g3) 52... Re6 {[%emt 0:01:35] Hoping for ...Re2+.} 53. Rh5+ {[%emt 0:00:14] White mates.} Kg6 {[%emt 0:00:01]} 54. Qc2+ {[%emt 0:00:27]} Re4 {[%emt 0:00:02]} 55. Ra5 {[%emt 0:01:11]} Kh6 {[%emt 0:02:42]} 56. Qd2+ {[%emt 0:01:00]} Re3 {[%emt 0:01:12]} 57. Qd6+ {[%emt 0:00:28]} Re6 {[%emt 0:00:09]} 58. Qf4+ {[%emt 0:00:14]} Kg7 {[%emt 0:00:30]} 59. Rxa7+ {[%emt 0:00:23]} Kg8 {[%emt 0:00:02]} 60. Qg5+ {[%emt 0:00:23]} Rg6 {[%emt 0:00:01]} 61. Qd5+ {[%emt 0:00:09] Weighted Error Value: White=0.62/Black=0.43} 1-0